bitfinex-derivatives/quotes_BTCF0:USTF0_20241117
["timestamp","ask_amount","ask_price","bid_price","bid_amount"]
[1731842361923,0.00010446,90775.0,90771.0,0.05508]
[1731842362313,0.00010446,90775.0,90772.0,1.5]
[1731842363813,0.00010446,90775.0,90774.0,0.055079]
[1731842364416,0.00010446,90775.0,90774.0,1.555079]
[1731842364721,0.00010446,90775.0,90771.0,0.0538304]
[1731842364922,0.00010446,90775.0,90768.0,0.060182]
[1731842365328,0.00010446,90775.0,90769.0,1.5]
[1731842365329,0.05518246,90775.0,90769.0,1.5]
[1731842365620,0.00010446,90775.0,90769.0,1.5]
[1731842366025,0.055079,90774.0,90769.0,1.5]
[1731842366421,0.00010446,90775.0,90769.0,1.5]
[1731842366622,0.13066611,90771.0,90769.0,1.5]
[1731842367323,0.13066611,90770.0,90769.0,1.555082]
[1731842367517,0.00010446,90775.0,90771.0,0.05508]
[1731842367518,0.13066611,90772.0,90771.0,0.05508]
[1731842367920,0.13066611,90773.0,90771.0,0.41588]
[1731842368221,0.00010446,90775.0,90771.0,0.41588]
[1731842368222,0.00010446,90775.0,90773.0,0.055079]
[1731842368633,0.00010446,90775.0,90774.0,0.1018]
[1731842369118,0.00010446,90775.0,90774.0,0.21196673]
[1731842370126,0.00010446,90775.0,90774.0,1.71196673]
[1731842370629,0.00010446,90775.0,90774.0,2.07276673]
[1731842371016,0.00010446,90775.0,90774.0,2.40324673]
[1731842371320,0.0051,90787.0,90774.0,2.40324673]
[1731842371522,0.13066611,90787.0,90782.0,0.3608]
[1731842371723,0.13066611,90788.0,90782.0,0.3608]
[1731842372030,0.13066611,90787.0,90779.0,0.0051]
[1731842372229,0.13066611,90786.0,90782.0,0.055074]
[1731842372614,0.13066611,90786.0,90779.0,0.0051]
[1731842373218,0.13066611,90782.0,90779.0,0.0051]
[1731842373420,0.16333459,90786.0,90774.0,1.8659]
[1731842373622,0.0318,90785.0,90774.0,1.8659]
[1731842373825,0.0346,90784.0,90774.0,1.8659]
[1731842374528,0.055078,90776.0,90774.0,0.3659]
[1731842374726,0.0341,90775.0,90774.0,0.3608]
[1731842377320,0.0341,90775.0,90774.0,0.415879]
[1731842377526,0.16231869,90785.0,90783.0,0.055073]
[1731842377726,0.0318,90785.0,90783.0,0.055073]
[1731842378227,0.0318,90785.0,90779.0,1.5]
[1731842378424,0.16301869,90786.0,90779.0,1.555076]
[1731842378825,0.21809069,90786.0,90779.0,1.555076]
[1731842379230,0.13051869,90785.0,90779.0,1.555076]
[1731842380222,0.13051869,90784.0,90779.0,1.555076]
[1731842380536,0.13051869,90785.0,90779.0,1.555076]
[1731842381043,0.13051869,90785.0,90781.0,0.055074]
[1731842381336,0.16301869,90786.0,90781.0,0.055074]
[1731842381525,0.16301869,90786.0,90783.0,0.055073]
[1731842382420,0.0325,90786.0,90783.0,0.055073]
[1731842382627,0.0325,90786.0,90779.0,1.5]
[1731842382931,0.087571,90786.0,90779.0,1.5]
[1731842383326,0.055072,90785.0,90779.0,1.5]
[1731842383535,0.0325,90786.0,90779.0,1.5]
[1731842383736,0.16301869,90786.0,90779.0,1.5]
[1731842384333,0.0325,90786.0,90779.0,1.5]
[1731842384632,0.13051869,90785.0,90779.0,1.5]
[1731842384936,0.16301869,90786.0,90780.0,0.055075]
[1731842385135,0.0325,90786.0,90780.0,0.055075]
[1731842385931,0.0325,90786.0,90779.0,1.5]
[1731842386139,0.0325,90786.0,90784.0,0.055072]
[1731842386439,0.0325,90786.0,90779.0,1.5]
[1731842386742,0.0325,90786.0,90779.0,1.555075]
[1731842387040,0.0325,90786.0,90780.0,0.055075]
[1731842387433,0.0325,90786.0,90773.0,0.47008]
[1731842387434,0.3608,90781.0,90775.0,0.26205164]
[1731842387737,0.16333459,90780.0,90763.0,0.19961314]
[1731842387939,0.055084,90765.0,90763.0,0.0016523]
[1731842388639,0.25087835,90765.0,90764.0,0.02204546]
[1731842388945,0.10867102,90765.0,90764.0,0.02204546]
[1731842389145,0.05358702,90765.0,90764.0,0.02204546]
[1731842389442,0.19621771,90765.0,90764.0,0.02204546]
[1731842389831,0.19621771,90766.0,90764.0,0.02204546]
[1731842390036,0.24980473,90765.0,90764.0,0.02204546]
[1731842390633,0.19621771,90765.0,90764.0,0.02204546]
[1731842390949,0.05358702,90765.0,90764.0,0.02204546]
[1731842391240,0.05358702,90769.0,90764.0,1.52204546]
[1731842391436,0.16058672,90768.0,90764.0,1.52204546]
[1731842391638,0.16058672,90767.0,90764.0,1.52204546]
[1731842391840,0.19624259,90767.0,90764.0,1.52204546]
[1731842392242,0.055081,90770.0,90764.0,1.52204546]
[1731842392243,0.24982961,90766.0,90764.0,1.52204546]
[1731842392444,0.24982961,90765.0,90764.0,1.52204546]
[1731842392741,0.05358702,90765.0,90764.0,1.52204546]
[1731842393146,0.24982961,90768.0,90764.0,1.57713046]
[1731842393345,0.05358702,90767.0,90764.0,1.57713046]
[1731842393544,0.05358702,90766.0,90764.0,1.57713046]
[1731842393740,0.19624259,90769.0,90764.0,1.52204546]
[1731842393741,0.05358702,90765.0,90764.0,1.52204546]
[1731842393949,0.16351386,90765.0,90764.0,1.52204546]
[1731842395935,0.16351386,90765.0,90764.0,1.55694546]
[1731842396142,0.16351386,90765.0,90764.0,1.72220569]
[1731842396335,0.55704259,90772.0,90766.0,0.055083]
[1731842396336,0.16351386,90767.0,90766.0,0.055083]
[1731842396544,0.16351386,90768.0,90766.0,0.055083]
[1731842396851,0.3608,90772.0,90766.0,0.36705164]
[1731842397148,0.3608,90772.0,90771.0,0.05508]
[1731842399848,0.05672466,90785.0,90771.0,0.10876742]
[1731842400154,0.05672466,90785.0,90776.0,0.19790872]
[1731842400347,0.00165266,90785.0,90776.0,0.19790872]
[1731842400551,0.055077,90776.0,90774.0,0.19790872]
[1731842400748,0.055077,90776.0,90772.0,0.19790872]
[1731842401052,0.055077,90776.0,90770.0,0.19790872]
[1731842401441,0.3608,90782.0,90770.0,0.19790872]
[1731842401642,0.055077,90777.0,90770.0,0.19790872]
[1731842402453,0.055077,90777.0,90771.0,0.19790872]
[1731842402649,0.055077,90777.0,90770.0,0.19790872]
[1731842402851,0.055077,90777.0,90773.0,0.19790872]
[1731842403852,0.055077,90777.0,90770.0,0.055081]
[1731842403853,0.16351386,90776.0,90770.0,0.055081]
[1731842404454,0.13087839,90771.0,90767.0,1.55570736]
[1731842404848,0.13087839,90770.0,90769.0,0.055081]
[1731842406153,0.13087839,90771.0,90769.0,0.055081]
[1731842406350,0.13087839,90770.0,90769.0,0.055081]
[1731842406554,0.13087839,90771.0,90769.0,0.055081]
[1731842407262,0.13087839,90770.0,90769.0,0.055081]
[1731842407660,0.13087839,90771.0,90769.0,0.055081]
[1731842408662,0.13087839,90772.0,90769.0,0.055081]
[1731842408956,0.13087839,90772.0,90771.0,0.05508]
[1731842409257,0.16351386,90777.0,90771.0,0.05508]
[1731842409458,0.13083394,90773.0,90771.0,0.05508]
[1731842409653,0.13083394,90774.0,90767.0,0.25361608]
[1731842409855,0.0051,90778.0,90777.0,0.055077]
[1731842410060,0.12224153,90784.0,90777.0,0.4658]
[1731842410255,0.16364063,90790.0,90789.0,0.055069]
[1731842410459,0.00012677,90790.0,90789.0,0.055069]
[1731842410661,0.00314063,90793.0,90783.0,1.5006]
[1731842410852,0.0051,90798.0,90796.0,0.055065]
[1731842411052,0.0051,90805.0,90799.0,0.055063]
[1731842411455,0.0051,90805.0,90799.0,1.555063]
[1731842411658,0.0051,90805.0,90799.0,1.66528702]
[1731842413251,0.0051,90805.0,90799.0,1.99568702]
[1731842413457,0.00178162,90817.0,90816.0,0.055053]
[1731842413659,0.0001293,90817.0,90816.0,0.160053]
[1731842414160,0.0001293,90817.0,90816.0,0.27018576]
[1731842414349,0.0001293,90817.0,90816.0,1.77018576]
[1731842416080,0.0001293,90817.0,90816.0,1.82408672]
[1731842418393,0.0001293,90817.0,90816.0,1.71908672]
[1731842420591,0.0692,90833.0,90816.0,1.66403372]
[1731842420801,0.0334,90832.0,90831.0,0.055044]
[1731842421003,0.0334,90832.0,90831.0,0.154684]
[1731842421296,0.0334,90832.0,90831.0,1.654684]
[1731842421478,0.0334,90832.0,90831.0,1.76477796]
[1731842422391,0.0334,90832.0,90831.0,1.70973396]
[1731842422771,0.0334,90832.0,90831.0,1.61009396]
[1731842423002,0.0334,90832.0,90830.0,0.09964]
[1731842423193,0.0341,90831.0,90828.0,0.09964]
[1731842423377,0.0341,90831.0,90816.0,0.02203451]
[1731842423378,0.0341,90831.0,90822.0,1.555049]
[1731842423564,0.0341,90831.0,90823.0,0.09964]
[1731842423878,0.0341,90831.0,90823.0,0.11009396]
[1731842424178,0.089144,90831.0,90823.0,0.11009396]
[1731842424362,0.055045,90830.0,90824.0,0.0996]
[1731842425168,0.0341,90831.0,90824.0,0.0996]
[1731842425362,0.0341,90831.0,90829.0,0.055045]
[1731842426473,0.0341,90831.0,90822.0,1.50056]
[1731842426474,0.055045,90829.0,90822.0,1.50056]
[1731842426755,0.055045,90829.0,90822.0,1.555049]
[1731842427267,0.055046,90828.0,90822.0,1.555049]
[1731842427769,0.055046,90828.0,90822.0,1.654649]
[1731842427961,0.055046,90828.0,90824.0,0.055048]
[1731842428361,0.0341,90831.0,90829.0,0.055045]
[1731842429571,0.0334,90832.0,90831.0,0.055044]
[1731842430167,0.0334,90832.0,90831.0,0.16513978]
[1731842431869,0.0334,90832.0,90830.0,0.0006]
[1731842432069,0.088443,90832.0,90825.0,0.02203502]
[1731842432459,0.055045,90830.0,90825.0,0.02203502]
[1731842433174,0.415846,90828.0,90825.0,0.02203502]
[1731842434662,0.3608,90828.0,90825.0,0.02203502]
[1731842434855,0.0334,90832.0,90831.0,0.055044]
[1731842435469,0.0334,90832.0,90831.0,1.555044]
[1731842437465,0.0334,90832.0,90831.0,1.55864921]
[1731842438473,0.090538,90841.0,90831.0,1.5]
[1731842438677,0.0344,90840.0,90833.0,0.055043]
[1731842438871,0.0344,90840.0,90831.0,1.5]
[1731842438872,0.0344,90840.0,90838.0,0.05504]
[1731842439476,0.0344,90840.0,90839.0,0.055039]
[1731842440773,0.2841849,90840.0,90839.0,0.055039]
[1731842440971,0.08794231,90840.0,90839.0,0.055039]
[1731842441379,0.2841849,90840.0,90839.0,0.055039]
[1731842442083,0.08794231,90840.0,90839.0,0.05866239]
[1731842442567,0.08794231,90840.0,90839.0,0.055039]
[1731842442767,0.08794231,90840.0,90839.0,0.05867156]
[1731842443773,0.08794231,90840.0,90839.0,0.11226025]
[1731842444365,0.05354231,90840.0,90839.0,0.10862561]
[1731842444784,0.05354231,90840.0,90839.0,0.11226065]
[1731842445078,0.0355,90841.0,90840.0,0.055039]
[1731842445079,0.28551695,90841.0,90840.0,0.055039]
[1731842445267,0.28551441,90841.0,90840.0,0.05867404]
[1731842446273,0.28553675,90841.0,90840.0,0.05866052]
[1731842446570,0.08903977,90841.0,90840.0,0.05866052]
[1731842446982,0.23199635,90841.0,90840.0,0.05866052]
[1731842447189,0.23199635,90841.0,90840.0,0.055039]
[1731842447190,0.28553612,90841.0,90840.0,0.055039]
[1731842447388,0.28553612,90841.0,90840.0,0.05866176]
[1731842448069,0.08903977,90841.0,90840.0,0.05866176]
[1731842448271,0.50487777,90841.0,90840.0,0.00362276]
[1731842448575,0.70137412,90841.0,90840.0,0.00362276]
[1731842448976,0.451338,90841.0,90840.0,0.00362276]
[1731842450385,0.3963,90841.0,90840.0,0.05866176]
[1731842452685,0.3963,90841.0,90840.0,0.00362276]
[1731842453384,0.3963,90841.0,90840.0,0.05866176]
[1731842453587,0.0355,90841.0,90840.0,0.05866176]
[1731842454695,0.00012136,90846.0,90845.0,0.055036]
[1731842454981,0.00012136,90846.0,90845.0,0.05865876]
[1731842455181,0.00012136,90846.0,90845.0,1.55865876]
[1731842455576,0.00012136,90846.0,90845.0,1.5646278]
[1731842455978,0.16373886,90861.0,90845.0,1.67505094]
[1731842456280,0.0366,90853.0,90852.0,0.055031]
[1731842456483,0.0366,90853.0,90852.0,0.05865376]
[1731842456782,0.0366,90853.0,90852.0,0.00362276]
[1731842456980,0.0366,90853.0,90845.0,0.25837527]
[1731842456981,0.03669265,90853.0,90849.0,0.055033]
[1731842457189,0.03669265,90853.0,90850.0,0.00371209]
[1731842457389,0.03669265,90853.0,90851.0,0.00371209]
[1731842457682,0.03669265,90853.0,90846.0,1.50056]
[1731842457880,0.16373886,90852.0,90847.0,0.00370351]
[1731842458081,0.3608,90849.0,90835.0,0.19789312]
[1731842458284,0.05504,90839.0,90830.0,0.055045]
[1731842458487,0.3608,90840.0,90831.0,0.055044]
[1731842458488,0.09074,90838.0,90831.0,0.055044]
[1731842458789,0.09074,90838.0,90826.0,0.001651]
[1731842458790,0.25447886,90838.0,90833.0,0.055043]
[1731842459087,0.25447886,90838.0,90826.0,0.001651]
[1731842459088,0.25447886,90838.0,90834.0,0.055042]
[1731842459395,0.25447886,90838.0,90826.0,0.001651]
[1731842459575,0.25447886,90838.0,90835.0,0.055041]
[1731842460480,0.0357,90838.0,90836.0,0.055041]
[1731842461485,0.0333,90837.0,90836.0,0.055041]
[1731842461686,0.0357,90838.0,90836.0,0.06102849]
[1731842461881,0.0357,90838.0,90837.0,0.00598749]
[1731842462089,0.0357,90838.0,90837.0,1.50598749]
[1731842462990,0.0357,90838.0,90837.0,0.00598749]
[1731842463184,0.0357,90838.0,90836.0,0.055041]
[1731842463380,0.21877986,90837.0,90836.0,0.055041]
[1731842463583,0.19943886,90838.0,90836.0,0.055041]
[1731842463978,0.05354622,90837.0,90836.0,0.055041]
[1731842464180,0.25004257,90837.0,90836.0,0.055041]
[1731842464388,0.05354622,90837.0,90836.0,0.055041]
[1731842464587,0.05354622,90837.0,90827.0,1.5]
[1731842464588,0.05354622,90837.0,90828.0,0.055046]
[1731842464788,0.16378167,90833.0,90830.0,0.055045]
[1731842464996,0.0357,90838.0,90827.0,1.5006]
[1731842464997,0.16378374,90834.0,90827.0,1.59932]
[1731842465183,0.16378374,90834.0,90833.0,0.055043]
[1731842465790,0.16378374,90835.0,90833.0,0.3608]
[1731842465986,0.3608,90849.0,90833.0,0.3608]
[1731842465987,0.16378374,90839.0,90833.0,0.3608]
[1731842466293,0.16376343,90841.0,90833.0,0.3608]
[1731842466492,0.16376343,90842.0,90833.0,0.3608]
[1731842466683,0.16376343,90842.0,90841.0,0.055038]
[1731842466885,0.25008152,90847.0,90841.0,0.055038]
[1731842466886,0.16376343,90845.0,90843.0,0.055037]
[1731842467184,0.19654389,90851.0,90848.0,0.055034]
[1731842467793,9.265e-05,90853.0,90834.0,0.055042]
[1731842467794,0.0535376,90850.0,90834.0,0.055042]
[1731842468094,0.19654389,90852.0,90849.0,0.055033]
[1731842468684,0.05353653,90851.0,90849.0,0.055033]
[1731842468889,0.05353653,90850.0,90849.0,0.055033]
[1731842469099,0.05353653,90850.0,90848.0,0.055034]
[1731842469289,0.08943653,90849.0,90848.0,0.055034]
[1731842469489,0.12263653,90849.0,90848.0,0.055034]
[1731842469684,0.12263653,90849.0,90844.0,0.055036]
[1731842469895,0.12263653,90849.0,90840.0,1.5]
[1731842469896,0.1637494,90846.0,90840.0,1.50056]
[1731842470090,0.1637494,90846.0,90828.0,0.35429558]
[1731842470091,0.055039,90840.0,90836.0,0.05504]
[1731842470291,0.0535403,90839.0,90837.0,0.00373323]
[1731842470590,0.1085793,90839.0,90838.0,0.00373323]
[1731842470793,0.25158289,90839.0,90838.0,0.00373323]
[1731842470996,0.055042,90834.0,90829.0,1.5]
[1731842471200,0.1860112,90834.0,90830.0,0.00373335]
[1731842471398,0.1860112,90834.0,90831.0,0.00373335]
[1731842471696,0.1860112,90834.0,90829.0,1.5006]
[1731842471697,0.1860112,90834.0,90832.0,0.00373335]
[1731842471899,0.1860112,90834.0,90829.0,1.5006]
[1731842471900,0.055042,90834.0,90833.0,0.00373335]
[1731842472299,0.055042,90834.0,90833.0,0.05877635]
[1731842472891,0.49272921,90835.0,90833.0,0.00373335]
[1731842473095,0.3608,90835.0,90834.0,0.05877535]
[1731842475191,0.415842,90835.0,90834.0,0.00373335]
[1731842475801,0.3608,90835.0,90834.0,0.05877535]
[1731842476907,0.3608,90835.0,90834.0,0.06482689]
[1731842478596,0.0742,90849.0,90848.0,0.055034]
[1731842478804,0.0742,90849.0,90848.0,0.06481889]
[1731842478805,0.0691,90849.0,90848.0,0.06481889]
[1731842479197,0.23274793,90849.0,90848.0,0.06481889]
[1731842479400,0.19954793,90849.0,90848.0,0.06481889]
[1731842479803,0.19954793,90849.0,90848.0,1.56481889]
[1731842480105,0.0359,90849.0,90848.0,1.56481889]
[1731842480308,0.19953382,90849.0,90848.0,1.56481889]
[1731842481103,0.0359,90849.0,90848.0,0.055034]
[1731842481410,0.08943787,90849.0,90848.0,0.06478692]
[1731842481612,0.1995348,90849.0,90848.0,0.06478692]
[1731842481815,0.1995348,90849.0,90848.0,0.06482167]
[1731842482210,0.0359,90849.0,90848.0,0.06482167]
[1731842482519,0.16363526,90849.0,90848.0,0.06482167]
[1731842482714,0.36089265,90853.0,90850.0,0.055033]
[1731842482715,0.16363526,90851.0,90850.0,0.055033]
[1731842483023,0.055032,90851.0,90850.0,0.00978767]
[1731842483318,0.1085685,90851.0,90850.0,0.00978767]
[1731842483516,0.0535365,90851.0,90850.0,0.00978767]
[1731842483818,0.0535365,90851.0,90850.0,0.05879682]
[1731842484015,0.0535365,90851.0,90850.0,0.00376382]
[1731842484216,0.36089265,90853.0,90850.0,0.05879682]
[1731842484521,0.05353598,90852.0,90851.0,0.05879582]
[1731842485525,0.05353598,90852.0,90851.0,0.055032]
[1731842485719,0.05353598,90852.0,90851.0,0.05878332]
[1731842485915,0.36089265,90853.0,90852.0,0.055031]
[1731842486119,0.49179934,90853.0,90852.0,0.06479227]
[1731842486324,0.49181365,90853.0,90852.0,0.06479227]
[1731842486723,0.36089265,90853.0,90852.0,0.06479227]
[1731842488616,0.36089265,90853.0,90852.0,0.06481132]
[1731842488808,0.36089265,90853.0,90852.0,0.055031]
[1731842489009,0.36089265,90853.0,90852.0,0.06481744]
[1731842489922,9.265e-05,90853.0,90852.0,0.06481744]
[1731842491926,9.265e-05,90853.0,90852.0,0.05879435]
[1731842492625,9.265e-05,90853.0,90852.0,0.055031]
[1731842492928,9.265e-05,90853.0,90852.0,0.0587786]
[1731842495128,9.265e-05,90853.0,90852.0,0.05879233]
[1731842495430,9.265e-05,90853.0,90852.0,0.055031]
[1731842495623,9.265e-05,90853.0,90852.0,0.05879234]
[1731842495826,0.0536245,90853.0,90852.0,0.05879234]
[1731842496228,9.265e-05,90853.0,90852.0,0.05879234]
[1731842497126,9.265e-05,90853.0,90852.0,0.055031]
[1731842497528,9.265e-05,90853.0,90852.0,0.05877776]
[1731842498241,9.265e-05,90853.0,90852.0,1.55877776]
[1731842498923,9.265e-05,90853.0,90852.0,1.56472001]
[1731842499933,9.265e-05,90853.0,90852.0,1.55877776]
[1731842500526,9.265e-05,90853.0,90852.0,0.05877776]
[1731842502031,9.265e-05,90853.0,90852.0,0.06466957]
[1731842504935,9.265e-05,90853.0,90852.0,0.05873503]
[1731842505136,9.265e-05,90853.0,90852.0,0.06466318]
[1731842505335,9.265e-05,90853.0,90852.0,0.055031]
[1731842505528,9.265e-05,90853.0,90852.0,0.06466487]
[1731842506133,9.265e-05,90853.0,90852.0,0.05873568]
[1731842507132,9.265e-05,90853.0,90852.0,0.06469704]
[1731842507537,9.265e-05,90853.0,90852.0,0.00966604]
[1731842508035,9.265e-05,90853.0,90852.0,0.00370468]
[1731842508430,9.265e-05,90853.0,90852.0,0.05873568]
[1731842508431,0.13088929,90853.0,90852.0,0.05873568]
[1731842509035,9.265e-05,90853.0,90852.0,0.05873568]
[1731842511130,9.265e-05,90853.0,90852.0,0.06469019]
[1731842512136,9.265e-05,90853.0,90852.0,0.06478688]
[1731842512538,9.265e-05,90853.0,90852.0,0.32856817]
[1731842512937,9.265e-05,90853.0,90852.0,0.06478688]
[1731842513236,9.265e-05,90853.0,90852.0,0.32883321]
[1731842513627,9.265e-05,90853.0,90852.0,0.06478688]
[1731842515339,9.265e-05,90853.0,90852.0,0.06483494]
[1731842516441,9.265e-05,90853.0,90852.0,0.06492421]
[1731842517935,9.265e-05,90853.0,90852.0,0.00989321]
[1731842518732,9.265e-05,90853.0,90852.0,0.06492421]
[1731842519941,0.16362992,90853.0,90852.0,0.06492421]
[1731842520432,9.265e-05,90853.0,90852.0,0.06492421]
[1731842521134,9.265e-05,90853.0,90852.0,0.06492039]
[1731842521831,0.05362529,90853.0,90852.0,0.06492039]
[1731842522033,0.10865629,90853.0,90852.0,0.06492039]
[1731842522238,0.43885629,90853.0,90852.0,0.00988939]
[1731842522540,0.055036,90845.0,90844.0,0.055036]
[1731842522738,0.10856864,90845.0,90844.0,0.055036]
[1731842523142,0.25216741,90845.0,90844.0,0.055036]
[1731842523644,0.14286864,90845.0,90844.0,0.055036]
[1731842524045,0.089336,90845.0,90844.0,0.055036]
[1731842525249,0.055038,90841.0,90840.0,0.00012923]
[1731842527831,0.18580215,90841.0,90840.0,0.00012923]
[1731842528148,0.18580215,90841.0,90840.0,0.05516823]
[1731842528539,0.055038,90841.0,90840.0,0.05516823]
[1731842529432,0.055038,90841.0,90840.0,0.00012923]
[1731842530740,0.49252416,90843.0,90840.0,0.00012923]
[1731842530941,0.3608,90843.0,90842.0,0.055037]
[1731842531333,0.415837,90843.0,90842.0,0.055037]
[1731842531539,0.055038,90841.0,90840.0,0.00012923]
[1731842531748,0.3608,90843.0,90840.0,0.00012923]
[1731842531946,0.055038,90841.0,90840.0,0.00012923]
[1731842532137,0.10858179,90841.0,90840.0,0.00012923]
[1731842533150,0.055046,90827.0,90826.0,0.001651]
[1731842533341,0.415846,90827.0,90826.0,0.056698]
[1731842534652,0.415846,90827.0,90826.0,0.06055838]
[1731842535446,0.415846,90827.0,90826.0,0.00551138]
[1731842536147,0.3608,90827.0,90826.0,0.06055838]
[1731842536353,0.13051584,90834.0,90826.0,0.01168938]
[1731842536650,0.13051584,90836.0,90827.0,0.04453838]
[1731842536847,0.13051584,90837.0,90835.0,0.055041]
[1731842537053,0.05504,90838.0,90836.0,0.05890138]
[1731842537256,0.15224611,90841.0,90836.0,0.05890138]
[1731842537257,0.18557517,90837.0,90836.0,0.055041]
[1731842537549,0.18557517,90837.0,90836.0,0.05892561]
[1731842537941,0.05504,90837.0,90836.0,0.05892561]
[1731842538135,0.05504,90837.0,90836.0,0.00388461]
[1731842538348,0.38532,90837.0,90836.0,0.00388461]
[1731842538647,0.38532,90837.0,90826.0,0.001651]
[1731842538648,0.055046,90827.0,90826.0,0.001651]
[1731842538947,0.415846,90827.0,90826.0,0.001651]
[1731842540447,0.3608,90827.0,90826.0,0.056698]
[1731842540651,0.3608,90827.0,90826.0,0.001651]
[1731842540652,0.415846,90827.0,90826.0,0.001651]
[1731842541346,0.415846,90827.0,90806.0,0.055059]
[1731842541347,0.05505,90821.0,90806.0,0.055059]
[1731842541655,0.18557212,90821.0,90807.0,0.055058]
[1731842541950,0.18557212,90821.0,90796.0,0.02203252]
[1731842541951,0.055059,90806.0,90804.0,0.05506]
[1731842542156,0.415859,90806.0,90804.0,0.05506]
[1731842543451,0.3608,90806.0,90804.0,0.05506]
[1731842543653,0.3608,90813.0,90812.0,0.055055]
[1731842544952,0.3608,90813.0,90812.0,1.555055]
[1731842545453,0.3608,90813.0,90812.0,1.61496478]
[1731842546159,0.3608,90824.0,90812.0,1.61496478]
[1731842546160,0.3608,90824.0,90823.0,0.055049]
[1731842546542,0.3608,90824.0,90823.0,0.06134823]
[1731842547060,0.3608,90824.0,90823.0,1.56134823]
[1731842549244,0.3608,90824.0,90823.0,1.50629923]
[1731842549441,0.3608,90824.0,90823.0,1.56134823]
[1731842550057,0.3608,90824.0,90823.0,0.06134823]
[1731842550555,0.3608,90824.0,90823.0,0.06524738]
[1731842551758,0.3608,90824.0,90823.0,0.07305455]
[1731842553080,0.3608,90824.0,90823.0,0.01800555]
[1731842553361,0.415848,90824.0,90823.0,0.01800555]
[1731842553554,0.415848,90824.0,90823.0,0.01009959]
[1731842553755,0.415848,90824.0,90823.0,0.06514859]
[1731842554565,0.57900412,90824.0,90823.0,0.06514859]
[1731842554859,0.52395612,90824.0,90823.0,0.06514859]
[1731842555455,0.3608,90824.0,90823.0,0.06514859]
[1731842555653,0.13074576,90824.0,90823.0,0.06514859]
[1731842555852,0.13074576,90826.0,90823.0,0.01009959]
[1731842556160,0.41680201,90835.0,90824.0,0.06514759]
[1731842556161,0.13074576,90825.0,90824.0,0.06514759]
[1731842556564,0.13074576,90825.0,90824.0,0.06511287]
[1731842559769,0.055042,90834.0,90827.0,0.055046]
[1731842559770,0.16315612,90831.0,90827.0,0.055046]
[1731842559953,0.3608,90835.0,90829.0,0.055045]
[1731842559954,0.16315612,90830.0,90829.0,0.055045]
[1731842560157,0.16315612,90830.0,90829.0,0.06119616]
[1731842560365,0.16315612,90830.0,90829.0,0.06503953]
[1731842560573,0.21820112,90830.0,90829.0,0.00999453]
[1731842560751,0.055045,90830.0,90829.0,0.00999453]
[1731842561460,0.055045,90830.0,90829.0,0.06503953]
[1731842563467,0.055045,90830.0,90829.0,0.06502645]
[1731842563768,0.13079021,90833.0,90832.0,0.055043]
[1731842563958,0.13079021,90833.0,90832.0,0.05887053]
[1731842565363,0.13079021,90833.0,90832.0,0.055043]
[1731842565567,0.13079021,90833.0,90832.0,0.05888007]
[1731842565770,0.13079021,90833.0,90832.0,0.055043]
[1731842566065,0.13079021,90833.0,90832.0,0.05889967]
[1731842566566,0.18583221,90834.0,90833.0,0.055043]
[1731842566761,0.18583221,90834.0,90833.0,0.06511101]
[1731842567172,0.18583221,90834.0,90833.0,0.06513523]
[1731842567570,0.49159021,90835.0,90833.0,0.01009223]
[1731842567756,0.49159021,90835.0,90834.0,0.06513423]
[1731842567757,0.3608,90835.0,90834.0,0.06513423]
[1731842568459,0.4143463,90835.0,90834.0,0.06513423]
[1731842569767,0.3608,90835.0,90834.0,0.06513423]
[1731842569963,0.16351633,90838.0,90834.0,0.12010748]
[1731842570275,0.19594767,90845.0,90835.0,1.51009223]
[1731842570276,0.16351633,90839.0,90835.0,1.51009223]
[1731842570472,0.16351633,90839.0,90836.0,0.01009223]
[1731842570661,0.16351633,90840.0,90837.0,0.01009223]
[1731842570868,0.16351633,90840.0,90839.0,0.055039]
[1731842571068,0.16351633,90840.0,90839.0,0.06513123]
[1731842572477,0.19594767,90845.0,90839.0,0.01009223]
[1731842572679,0.24948862,90844.0,90843.0,0.055037]
[1731842572863,0.24948862,90844.0,90843.0,0.06512923]
[1731842572864,0.19594767,90844.0,90843.0,0.06512923]
[1731842573673,0.05354095,90844.0,90843.0,0.06512923]
[1731842573976,0.05354095,90845.0,90843.0,0.06512923]
[1731842574181,0.05354095,90845.0,90844.0,0.06512823]
[1731842576181,0.46937695,90845.0,90844.0,0.01009223]
[1731842576386,0.57532814,90845.0,90844.0,0.00388094]
[1731842576596,0.46937695,90845.0,90844.0,0.00388094]
[1731842576880,0.51992896,90845.0,90830.0,0.055044]
[1731842577069,0.415844,90831.0,90830.0,0.055044]
[1731842577269,0.415844,90831.0,90830.0,0.06500181]
[1731842577675,0.415844,90831.0,90830.0,0.055044]
[1731842577875,0.415844,90831.0,90830.0,0.06500184]
[1731842578085,0.415844,90831.0,90830.0,0.00995784]
[1731842578568,0.415844,90831.0,90830.0,0.00382926]
[1731842578772,0.57942043,90831.0,90830.0,0.00382926]
[1731842579074,0.46939406,90831.0,90830.0,0.00382926]
[1731842579273,0.66568578,90831.0,90830.0,0.00382926]
[1731842579578,0.055056,90813.0,90812.0,0.055055]
[1731842579770,0.3608,90813.0,90812.0,0.06117933]
[1731842580476,0.415855,90813.0,90812.0,0.06117933]
[1731842580873,0.415855,90813.0,90812.0,0.06121743]
[1731842581376,0.3608,90813.0,90812.0,0.06121743]
[1731842581572,0.49164368,90813.0,90812.0,0.06121743]
[1731842581981,0.3608,90813.0,90812.0,0.06121743]
[1731842583576,0.13084368,90820.0,90819.0,0.055051]
[1731842583879,0.13084368,90827.0,90819.0,0.01398702]
[1731842584085,0.13084368,90827.0,90820.0,0.01398702]
[1731842584277,0.13083198,90828.0,90821.0,0.01398702]
[1731842584476,0.13083198,90828.0,90827.0,0.055046]
[1731842584678,0.13083198,90828.0,90827.0,0.06903302]
[1731842584882,0.3608,90831.0,90830.0,0.055045]
[1731842585074,0.3608,90831.0,90830.0,0.06126046]
[1731842585279,0.3608,90831.0,90830.0,1.56126046]
[1731842585480,0.3608,90831.0,90830.0,0.06126046]
[1731842586082,0.52438378,90831.0,90830.0,0.06126046]
[1731842586383,0.41434962,90831.0,90830.0,0.06126046]
[1731842586582,0.3608,90831.0,90830.0,0.06126046]
[1731842586790,0.52433857,90831.0,90830.0,0.06126046]
[1731842586986,0.52433857,90831.0,90830.0,0.055045]
[1731842587291,0.52433857,90831.0,90830.0,0.06128186]
[1731842588273,0.3608,90831.0,90830.0,0.00623686]